[Event "32nd NATO Championship 2022"]
[Site "Tartu"]
[Date "2022.07.01"]
[Round "7.43"]
[White "Steffers, Hendrik"]
[Black "Echavarria Hidalgo, Fernando"]
[Result "1/2-1/2"]
[ECO "D05"]
[WhiteElo "1856"]
[BlackElo "1749"]
[Annotator "NA RC"]
[PlyCount "165"]
[EventDate "2022.06.27"]
[EventType "swiss"]
[EventCountry "EST"]
[SourceTitle "playchess.com"]
[Source "ChessBase"]
[SourceQuality "1"]
[TimeControl "5400+30"]

1. d4 {[%emt 0:00:05]} Nf6 {[%emt 0:00:07]} 2. Nf3 {[%emt 0:00:08]} e6 {[%emt 0:01:31]} 3. e3 {[%emt 0:00:10]} c5 {[%emt 0:01:00]} 4. Bd3 {[%emt 0:00:23]} Nc6 {[%emt 0:01:18]} 5. c3 {[%emt 0:00:47]} cxd4 {[%emt 0:03:11]} 6. exd4 {[%emt 0:00:35]} Be7 {[%emt 0:01:44]} 7. O-O {[%emt 0:02:10]} O-O {[%emt 0:02:07]} 8. Nbd2 {[%emt 0:03:01]} d5 {[%emt 0:03:13]} 9. Re1 {[%emt 0:02:04]} Qc7 {[%emt 0:03:56]} 10. Ne5 {[%emt 0:04:46]} Nxe5 {[%emt 0:05:33]} 11. dxe5 {[%emt 0:00:58]} Nd7 $1 {[%emt 0:05:45]} 12. f4 {[%emt 0:00:39]} (12. Nf3 $14) 12... Nc5 {[%emt 0:08:18]} 13. Bc2 {[%emt 0:06:51]} g6 {[%emt 0:07:08]} 14. Nf3 {[%emt 0:02:52]} f5 {[%emt 0:03:20] [#]} (14... b5 $11) 15. exf6 $1 {[%emt 0:06:14]} Bxf6 {[%emt 0:01:53]} 16. Ne5 {[%emt 0:05:01]} (16. Be3 $16) 16... Qg7 {[%emt 0:05:52]} (16... Nd7 $14) 17. Ng4 {[%emt 0:18:02]} Bh4 {[%emt 0:02:29]} (17... b6 $142) 18. g3 {[%emt 0:01:56]} Be7 {[%emt 0:01:57]} 19. Be3 {[%emt 0:01:31]} Nd7 {[%emt 0:02:17]} 20. Bf2 {[%emt 0:05:25]} ({Don't do} 20. Bd4 Bc5 21. Bb3 (21. Rxe6 Bxd4+ 22. cxd4 Nb6 $14) 21... Bxd4+ 22. Qxd4 (22. cxd4 Nf6 $14) 22... Qxd4+ 23. cxd4 Nf6 $16) 20... h5 $2 {[%emt 0:03:55]} (20... Nf6 $16) 21. Bd4 {[%emt 0:01:30]} Bc5 {[%emt 0:02:42]} 22. Bxc5 {[%emt 0:02:39]} ({Don't do} 22. Rxe6 Bxd4+ 23. cxd4 (23. Qxd4 Qxd4+ 24. cxd4 hxg4 $15) 23... Nf6 $18) 22... Nxc5 {[%emt 0:00:28]} 23. Ne5 {[%emt 0:00:13]} Rf6 {[%emt 0:04:14]} 24. Qd4 {[%emt 0:03:30]} b6 {[%emt 0:03:43]} 25. Re3 {[%emt 0:01:31]} Nb7 {[%emt 0:01:53]} 26. Qd3 {[%emt 0:03:14]} (26. c4 $142) 26... Nc5 {[%emt 0:01:10]} 27. Qd4 {[%emt 0:00:52]} Nb7 $1 {[%emt 0:00:20]} 28. Rae1 {[%emt 0:00:22]} Nd6 {[%emt 0:01:19]} 29. b3 {[%emt 0:02:54]} Nf5 {[%emt 0:01:49]} 30. Bxf5 {[%emt 0:00:19]} Rxf5 {[%emt 0:02:17]} 31. Nf3 {[%emt 0:01:21]} Bd7 {[%emt 0:04:32]} 32. Qxg7+ {[%emt 0:01:56]} Kxg7 {[%emt 0:00:15]} 33. Nd4 {[%emt 0:00:45]} Rf7 {[%emt 0:02:54]} 34. Nxe6+ {[%emt 0:00:19]} Bxe6 {[%emt 0:00:58]} 35. Rxe6 {[%emt 0:00:12]} Rc8 {[%emt 0:00:29]} 36. R1e3 {[%emt 0:01:51]} Kh6 {[%emt 0:01:38]} 37. Rd6 {[%emt 0:01:05]} Rfc7 {[%emt 0:00:26]} 38. Rxd5 {[%emt 0:05:42]} Rxc3 {[%emt 0:00:20]} 39. Rxc3 {[%emt 0:00:23]} Rxc3 {[%emt 0:00:04]} 40. Rd2 {[%emt 0:00:22]} Rc1+ {[%emt 0:00:30]} 41. Kf2 {[%emt 0:00:32]} Rc5 {[%emt 0:00:35]} 42. Ke3 {[%emt 0:00:43]} Rc7 {[%emt 0:00:47]} 43. Ke4 {[%emt 0:01:35]} Kg7 {[%emt 0:01:04]} 44. Rg2 {[%emt 0:01:41]} Kf6 {[%emt 0:00:14]} 45. h3 {[%emt 0:00:14]} Rc5 {[%emt 0:00:44]} 46. g4 {[%emt 0:00:24]} Ra5 {[%emt 0:01:21]} (46... Rc3 $16 {was worth a try.}) 47. Rc2 {[%emt 0:00:32]} hxg4 {[%emt 0:00:14]} 48. hxg4 {[%emt 0:00:02]} Kg7 {[%emt 0:01:14]} 49. Rf2 {[%emt 0:02:42]} Rc5 {[%emt 0:00:18]} 50. Kd4 {[%emt 0:00:25]} Kf6 {[%emt 0:00:18]} 51. a3 {[%emt 0:00:41]} Ke6 {[%emt 0:00:46]} 52. b4 {[%emt 0:00:31]} Rc7 {[%emt 0:00:33]} 53. Re2+ {[%emt 0:01:00]} Kd6 {[%emt 0:01:33]} 54. Re3 {[%emt 0:01:15]} Rf7 {[%emt 0:00:34]} 55. Rf3 {[%emt 0:00:12]} Rc7 {[%emt 0:00:13]} 56. a4 {[%emt 0:01:27]} a6 {[%emt 0:00:24]} 57. Re3 {[%emt 0:01:02]} Rf7 {[%emt 0:00:11]} 58. Re4 {[%emt 0:00:16]} Rc7 {[%emt 0:01:43]} 59. Re8 {[%emt 0:01:10]} Rf7 {[%emt 0:00:31]} 60. Ke4 {[%emt 0:00:24]} Rc7 {[%emt 0:02:15]} 61. Kd3 {[%emt 0:00:49]} Rf7 {[%emt 0:00:15]} 62. Ke3 {[%emt 0:01:44]} Kd7 {[%emt 0:02:41]} 63. Ra8 {[%emt 0:00:35]} Kc6 {[%emt 0:00:14]} 64. Rg8 {[%emt 0:01:52]} Re7+ {[%emt 0:00:17]} 65. Kf3 {[%emt 0:00:09]} Re6 {[%emt 0:00:30]} 66. f5 {[%emt 0:00:24]} gxf5 {[%emt 0:01:27]} 67. gxf5 {[%emt 0:00:02]} Re1 {[%emt 0:00:21]} 68. Rg6+ {[%emt 0:00:06]} Kc7 {[%emt 0:00:35]} 69. f6 $2 {[%emt 0:02:31]} (69. Kf4 $18) 69... Rf1+ {[%emt 0:00:19]} 70. Ke4 {[%emt 0:00:29]} Re1+ $2 {[%emt 0:00:19]} (70... Kd6 $11) 71. Kd4 {[%emt 0:00:10]} Rd1+ {[%emt 0:00:15]} 72. Ke5 {[%emt 0:00:26]} Re1+ {[%emt 0:00:14]} 73. Kd5 {[%emt 0:00:15]} Rd1+ {[%emt 0:00:47]} 74. Ke6 {[%emt 0:00:01]} Re1+ {[%emt 0:00:14]} 75. Kd5 {[%emt 0:00:34]} Rd1+ {[%emt 0:00:17]} 76. Kc4 {[%emt 0:00:01]} Rf1 {[%emt 0:02:03]} 77. Rg7+ {[%emt 0:00:39]} Kd6 {[%emt 0:01:24]} 78. f7 {[%emt 0:01:03]} Rf4+ {[%emt 0:00:19]} 79. Kc3 {[%emt 0:00:07]} Ke7 {[%emt 0:00:26]} 80. Rg6 {[%emt 0:00:37]} a5 {[%emt 0:01:05]} 81. bxa5 {[%emt 0:02:36]} ({Don't do} 81. Rxb6 Kxf7 82. bxa5 Rxa4 $11) 81... bxa5 {[%emt 0:00:19]} 82. Kb3 {[%emt 0:00:25]} Rxf7 {[%emt 0:00:40]} 83. Ra6 $11 {[%emt 0:01:07]} 1/2-1/2

[Event "32nd NATO Championship 2022"]
[Site "Tartu"]
[Date "2022.07.01"]
[Round "7.46"]
[White "Korge, Kersti"]
[Black "Jansen, Lyle John"]
[Result "1-0"]
[ECO "A00"]
[WhiteElo "1864"]
[BlackElo "1470"]
[Annotator "NA RC"]
[PlyCount "67"]
[EventDate "2022.06.27"]
[EventType "swiss"]
[EventCountry "EST"]
[SourceTitle "playchess.com"]
[Source "ChessBase"]
[SourceQuality "1"]
[TimeControl "5400+30"]

1. b4 {[%emt 0:00:04]} g6 {[%emt 1:31:00]} 2. Bb2 {[%emt 1:31:26]} d6 {[%emt 0:00:00]} 3. Bxh8 {[%emt 0:00:00]} f6 {[%emt 0:00:00]} 4. e3 {[%emt 0:00:00]} Bf5 {[%emt 0:00:00]} 5. c4 {[%emt 0:00:00]} Nc6 {[%emt 0:00:00]} 6. Qa4 {[%emt 0:00:00]} Qd7 {[%emt 0:00:00]} 7. d4 {[%emt 0:00:00]} b6 {[%emt 0:00:00]} 8. Nc3 {[%emt 0:00:00]} Nd8 {[%emt 0:00:00]} 9. Qxd7+ {[%emt 0:00:00]} Bxd7 {[%emt 0:00:00]} 10. Nd5 {[%emt 0:00:00]} Rc8 {[%emt 0:00:00]} 11. Bxf6 {[%emt 0:00:00]} exf6 {[%emt 0:00:00]} 12. Bd3 {[%emt 0:00:00]} Nc6 {[%emt 0:00:00]} 13. Ne2 {[%emt 0:00:00]} Nce7 {[%emt 0:00:00]} 14. Nec3 {[%emt 0:00:00]} a6 {[%emt 0:00:00]} 15. a4 {[%emt 0:00:00]} Nxd5 {[%emt 0:00:00]} 16. Nxd5 {[%emt 0:00:00]} Ne7 {[%emt 0:00:00]} 17. Nxf6+ {[%emt 0:00:00]} Kd8 {[%emt 0:00:00]} 18. Nxh7 {[%emt 0:00:00]} Bg7 {[%emt 0:00:00]} 19. Ng5 {[%emt 0:00:00]} c5 {[%emt 0:00:00]} 20. b5 {[%emt 0:00:00]} cxd4 {[%emt 0:00:00]} 21. e4 {[%emt 0:00:00]} a5 {[%emt 0:00:00]} 22. f4 {[%emt 0:00:00]} Kc7 {[%emt 0:00:00]} 23. O-O {[%emt 0:00:00]} Rh8 {[%emt 0:00:00]} 24. Rae1 {[%emt 0:00:00]} Rh5 {[%emt 0:00:00]} 25. h3 {[%emt 0:00:00]} Bh6 {[%emt 0:00:00]} 26. Nf7 {[%emt 0:00:00]} Bg7 {[%emt 0:00:00]} 27. Rf3 {[%emt 0:00:00]} Be8 {[%emt 0:00:00]} 28. Ng5 {[%emt 0:00:00]} Bf6 {[%emt 0:00:00]} 29. g4 {[%emt 0:00:00]} Rh4 {[%emt 0:00:00]} 30. Ne6+ {[%emt 0:00:00]} Kd7 {[%emt 0:00:00]} 31. Nf8+ {[%emt 0:00:00]} Kd8 {[%emt 0:00:00]} 32. e5 {[%emt 0:00:00]} dxe5 {[%emt 0:00:00]} 33. fxe5 {[%emt 0:00:00]} Bg7 $18 {[%emt 0:00:00]} 34. Ne6+ {[%emt 0:00:00]} 1-0